bitfinex-derivatives/quotes_ETHF0:USTF0_20250112
["timestamp","ask_amount","ask_price","bid_price","bid_amount"]
[1736695735129,4.78427495,3286.3,3286.2,5.21312]
[1736695735312,2.27627495,3286.3,3286.2,46.01312]
[1736695735516,10.74072582,3287.2,3286.2,46.01312]
[1736695735517,0.21309,3286.7,3286.2,45.8]
[1736695735718,0.21309,3286.7,3286.6,3.4209]
[1736695736224,0.4452,3287.2,3286.6,3.2078]
[1736695736431,0.4452,3287.2,3287.1,3.2078]
[1736695736730,0.88846222,3287.2,3287.1,3.2078]
[1736695736917,0.66816,3287.3,3287.1,3.2078]
[1736695737232,0.21305,3287.4,3287.1,3.42086]
[1736695737422,0.21305,3287.4,3287.2,0.21306]
[1736695737618,0.21305,3287.4,3287.1,3.42086]
[1736695738126,0.4452,3287.6,3287.1,3.42086]
[1736695738320,0.21305,3287.3,3287.1,3.42086]
[1736695738823,0.213,3288.2,3287.5,0.21304]
[1736695739124,0.21303,3287.8,3287.3,0.21305]
[1736695739325,0.21303,3287.8,3287.7,3.2078]
[1736695741130,0.21302,3287.9,3287.7,3.2078]
[1736695742126,0.4704,3288.0,3287.7,3.2078]
[1736695742329,3.2078,3288.3,3287.9,0.21301]
[1736695742330,0.21299,3288.3,3287.9,0.21301]
[1736695742534,0.21299,3288.4,3288.2,3.2078]
[1736695742726,3.2078,3288.7,3288.2,3.2078]
[1736695742727,0.21299,3288.3,3288.2,3.2078]
[1736695743233,3.2078,3288.7,3288.2,3.2078]
[1736695743627,0.21298,3288.5,3288.2,3.2078]
[1736695744725,3.2078,3288.7,3288.2,3.2078]
[1736695744929,0.21299,3288.4,3288.2,3.2078]
[1736695745826,3.2078,3288.7,3288.2,3.2078]
[1736695746332,0.21298,3288.4,3288.2,3.2078]
[1736695746727,0.21298,3288.5,3288.2,3.2078]
[1736695747935,0.21298,3288.4,3288.2,3.2078]
[1736695748127,0.21298,3288.5,3288.2,3.2078]
[1736695748732,0.21297,3288.6,3288.2,3.42079]
[1736695749133,3.2078,3288.7,3288.2,3.2078]
[1736695749330,0.21298,3288.5,3288.2,3.2078]
[1736695749928,3.2078,3288.7,3288.2,3.2078]
[1736695750129,0.21298,3288.4,3288.2,3.2078]
[1736695750538,0.21298,3288.5,3288.2,3.2078]
[1736695751040,1.3934,3288.8,3288.2,3.2078]
[1736695751336,1.60636,3288.8,3288.7,3.2078]
[1736695751727,0.21296,3288.8,3288.7,3.2078]
[1736695752335,0.21299,3288.2,3288.1,0.445]
[1736695752731,1.405,3288.6,3288.1,1.694]
[1736695753138,0.21299,3288.4,3288.1,1.694]
[1736695753334,0.21299,3288.4,3288.1,0.445]
[1736695753535,0.80229958,3288.3,3288.1,0.445]
[1736695753935,0.21299,3288.4,3288.1,0.445]
[1736695754234,0.80229958,3288.3,3288.1,0.445]
[1736695754839,0.21298,3288.4,3288.1,0.445]
[1736695755138,0.51793512,3288.3,3288.1,0.445]
[1736695755338,0.73092512,3288.3,3288.1,0.445]
[1736695755533,0.21299,3288.3,3288.1,0.445]
[1736695755836,0.21299,3288.3,3288.2,3.2078]
[1736695756226,0.53231,3289.4,3288.2,10.31891269]
[1736695756433,0.66633,3289.2,3289.1,3.2078]
[1736695757636,0.53223,3289.9,3289.1,3.2078]
[1736695757837,0.2129,3289.7,3289.6,3.2078]
[1736695760536,0.21289,3289.8,3289.6,3.2078]
[1736695761135,0.21287,3290.1,3289.6,3.2078]
[1736695761332,0.21287,3290.2,3290.0,3.2078]
[1736695761836,0.21287,3290.1,3290.0,3.2078]
[1736695762240,0.21286,3290.3,3290.0,3.2078]
[1736695763241,0.21287,3290.2,3290.0,3.2078]
[1736695763433,0.4507,3290.4,3290.0,3.2078]
[1736695763630,0.21287,3290.1,3290.0,3.2078]
[1736695764443,0.53207,3290.9,3290.0,3.2078]
[1736695764742,0.21287,3290.2,3290.1,0.4551]
[1736695765145,0.21287,3290.1,3290.0,3.2078]
[1736695765738,0.53211,3290.6,3290.0,3.2078]
[1736695765937,0.21287,3290.1,3290.0,3.2078]
[1736695766133,0.21284,3290.6,3290.3,0.21285]
[1736695766437,0.21284,3290.6,3290.5,3.2078]
[1736695769042,0.21284,3290.7,3290.5,3.42065]
[1736695769746,0.4419,3291.0,3290.5,3.2078]
[1736695769939,0.21283,3290.8,3290.6,0.21284]
[1736695770243,0.21283,3290.8,3290.7,0.21283]
[1736695770439,0.21283,3290.8,3290.6,0.21284]
[1736695771741,0.21283,3290.8,3290.5,3.6497]
[1736695771742,0.21282,3291.0,3290.8,0.21282]
[1736695771942,0.21282,3291.0,3290.9,4.1233]
[1736695774244,0.4508,3291.7,3290.9,7.48141269]
[1736695774452,0.4508,3291.7,3291.3,3.2078]
[1736695774650,0.21278,3291.6,3291.4,0.21278]
[1736695774948,0.21278,3291.6,3291.5,40.8]
[1736695776545,0.21279,3291.4,3291.3,3.42059]
[1736695777144,0.21279,3291.4,3291.3,3.2078]
[1736695777345,0.21281,3291.0,3290.9,6.44723269]
[1736695777644,0.21281,3291.0,3290.9,6.23441269]
[1736695777849,0.21281,3291.0,3290.9,6.44723269]
[1736695778146,0.4508,3291.7,3290.9,6.44723269]
[1736695778446,0.21281,3291.1,3291.0,0.21281]
[1736695778640,0.4508,3291.7,3291.1,0.21281]
[1736695778641,0.2128,3291.2,3291.1,0.21281]
[1736695778840,3.2078,3291.9,3290.9,6.23441269]
[1736695779052,0.21278,3291.5,3291.4,3.2078]
[1736695779443,0.73071512,3291.5,3291.4,3.2078]
[1736695779646,0.21281,3291.0,3290.9,3.2078]
[1736695779940,0.21279,3291.3,3291.2,0.2128]
[1736695780151,0.65569,3291.4,3291.3,0.21279]
[1736695780447,0.51793512,3291.5,3291.3,5.31891269]
[1736695780743,0.4429,3292.3,3291.6,0.21277]
[1736695780948,0.21276,3291.8,3291.7,3.2078]
[1736695781645,0.21275,3292.1,3291.8,0.21276]
[1736695781845,0.21275,3292.1,3291.7,4.4548]
[1736695782045,0.9084,3292.3,3291.8,3.02791269]
[1736695782344,1.12113,3292.3,3292.2,3.42054]
[1736695782946,0.4655,3292.3,3292.2,3.42054]
[1736695783148,0.67823,3292.3,3292.2,3.2078]
[1736695784558,0.67342,3292.5,3292.4,0.21272]
[1736695784752,3.2078,3292.9,3292.4,2.32383269]
[1736695784753,0.21271,3292.6,3292.4,2.32383269]
[1736695784954,0.21272,3292.5,3292.4,2.32383269]
[1736695785254,0.21271,3292.7,3292.5,0.21271]
[1736695785456,0.21271,3292.7,3292.6,3.2078]
[1736695785656,0.21271,3292.7,3292.6,3.42051]
[1736695785958,0.21271,3292.7,3292.6,3.2078]
[1736695789758,0.2127,3292.8,3292.6,3.42051]
[1736695790352,0.2127,3292.7,3292.6,3.2078]
[1736695791155,0.21268,3293.1,3292.9,0.21269]
[1736695791356,0.21268,3293.1,3293.0,3.2078]
[1736695793364,0.21265,3293.6,3293.3,0.21266]
[1736695793655,0.21265,3293.6,3293.5,3.2078]
[1736695794653,0.21264,3293.7,3293.5,3.42045]
[1736695795759,0.8785,3294.0,3293.5,3.42045]
[1736695795760,0.21265,3293.6,3293.5,3.2078]
[1736695795959,0.21265,3293.6,3293.1,0.4571]
[1736695795960,0.21266,3293.3,3293.1,3.6649]
[1736695796158,0.21266,3293.3,3293.2,0.21267]
[1736695796358,0.21266,3293.4,3293.2,0.21267]
[1736695796661,0.53158,3293.9,3293.2,0.21267]
[1736695796662,0.3982419,3293.3,3293.2,0.21267]
[1736695796957,0.3982519,3293.3,3293.1,3.2078]
[1736695797163,0.1855819,3293.3,3293.2,0.21267]
[1736695797464,0.21266,3293.3,3293.2,0.21267]
[1736695797655,0.21267,3293.2,3293.1,3.2078]
[1736695797859,0.64927,3293.2,3293.1,3.2078]
[1736695799066,0.21267,3293.2,3293.1,3.2078]
[1736695799260,0.99063512,3293.2,3293.1,3.42048]
[1736695799458,1.20330512,3293.2,3293.1,3.42048]
[1736695799764,1.20330512,3293.2,3293.1,3.2078]
[1736695800263,0.51793512,3293.2,3293.1,3.2078]
[1736695800453,0.21265,3293.6,3293.5,0.21265]
[1736695800655,0.21265,3293.6,3293.5,3.2078]
[1736695801057,0.41050184,3294.9,3293.5,11.56491269]
[1736695801368,0.21257,3294.8,3294.7,0.21257]
[1736695801568,0.21257,3294.8,3294.6,3.2078]
[1736695801765,0.21257,3294.8,3294.7,40.8]
[1736695802059,0.21256,3295.0,3294.9,0.21256]
[1736695802265,1.3935,3295.3,3294.6,3.2078]
[1736695802468,1.3935,3295.3,3294.7,0.21257]
[1736695802665,0.21256,3294.9,3294.7,0.21257]
[1736695803074,1.3935,3295.3,3294.6,3.2078]
[1736695803369,1.3935,3295.3,3294.8,0.21257]
[1736695803569,0.21256,3295.0,3294.8,0.21256]
[1736695803766,0.2126,3294.3,3294.2,2.68986488]
[1736695804271,3.2078,3295.0,3294.2,2.68986488]
[1736695804469,0.4456,3294.6,3294.4,0.21259]
[1736695804663,0.4456,3294.6,3294.5,3.2078]
[1736695804971,0.21258,3294.7,3294.5,3.2078]
[1736695805171,0.21256,3295.0,3294.5,3.42039]
[1736695805469,0.21258,3294.6,3294.5,3.2078]
[1736695807462,0.21258,3294.7,3294.5,3.2078]
[1736695807658,0.21256,3295.0,3294.5,3.2078]
[1736695807858,0.21258,3294.6,3294.5,3.2078]
[1736695808264,0.4456,3295.1,3294.5,3.2078]
[1736695808467,0.21257,3294.7,3294.6,0.21258]
[1736695808670,0.4456,3295.1,3294.5,3.2078]
[1736695808871,0.21255,3295.2,3294.9,3.2078]
[1736695809073,0.53126,3295.9,3294.9,3.6676]
[1736695809266,0.21252,3295.5,3295.4,3.2078]
[1736695810369,0.44344323,3295.6,3295.4,3.2078]
[1736695810570,0.21252,3295.5,3295.4,3.2078]
[1736695811474,0.4433555,3295.5,3295.4,3.2078]
[1736695813669,0.2308355,3295.5,3295.4,3.2078]
[1736695814371,0.4433555,3295.5,3295.4,3.2078]
[1736695815374,1.85512,3296.1,3295.4,3.2078]
[1736695815572,0.21251,3295.8,3295.6,0.21252]
[1736695815875,0.21251,3295.7,3295.4,3.6577]
[1736695816077,0.21251,3295.7,3295.5,0.21252]
[1736695816777,1.3239,3296.1,3295.4,3.87022]
[1736695817076,3.2078,3296.4,3296.0,3.2078]
[1736695817277,0.21248,3296.2,3296.0,3.42029]
[1736695817477,3.2078,3297.0,3296.0,3.2078]
[1736695818078,3.2078,3297.0,3296.3,0.21247]
[1736695818375,0.21245,3296.6,3296.4,0.21246]
[1736695818576,0.21245,3296.7,3296.1,0.4478]
[1736695818771,3.2078,3297.0,3296.4,3.2078]
[1736695818973,0.21245,3296.6,3296.5,0.21246]
[1736695819478,0.21245,3296.7,3296.5,0.21246]
[1736695819674,0.21245,3296.7,3296.4,3.2078]
[1736695819675,0.21246,3296.6,3296.4,3.42026]
[1736695820274,0.21246,3296.5,3296.4,3.2078]
[1736695820580,0.21246,3296.6,3296.4,3.42026]
[1736695820777,3.2078,3297.0,3296.4,3.2078]
[1736695820980,3.2078,3297.0,3296.6,0.21245]
[1736695821179,0.21245,3296.7,3296.5,0.21246]
[1736695821379,0.21246,3296.6,3296.4,3.42026]
[1736695821981,0.21246,3296.6,3296.4,3.2078]
[1736695822178,3.2078,3297.0,3296.4,3.2078]
[1736695822386,0.21246,3296.5,3296.4,3.2078]
[1736695823176,0.21248,3296.2,3296.0,3.2078]
[1736695823482,0.21248,3296.1,3296.0,3.2078]
[1736695823678,0.21251,3295.7,3295.6,0.4754]
[1736695823883,0.21252,3295.5,3295.4,0.4784]
[1736695824382,0.4796,3296.0,3295.4,0.4784]
[1736695824574,0.4796,3296.0,3295.7,3.2078]
[1736695824575,0.2125,3295.8,3295.7,3.2078]
[1736695825283,0.21255,3295.1,3295.0,3.2078]
[1736695825488,0.21257,3294.7,3294.6,3.2078]
[1736695826784,0.21258,3294.7,3294.6,3.2078]
[1736695829578,0.44410762,3294.7,3294.6,3.2078]
[1736695834290,0.44410762,3294.7,3294.6,3.42038]
[1736695834678,0.44410762,3294.7,3294.6,3.2078]
[1736695836189,0.44410762,3294.7,3294.6,3.6877]
[1736695836385,0.44410762,3294.7,3294.6,3.2078]
[1736695839589,6.48852762,3294.7,3293.3,4.74377299]
[1736695839780,3.2078,3293.9,3293.3,4.74377299]
[1736695839985,0.21266,3293.5,3293.3,4.74377299]
[1736695840187,3.2078,3293.9,3293.4,40.8]
[1736695840497,3.2078,3294.4,3293.6,3.2078]
[1736695840791,0.22753722,3294.7,3294.5,0.21258]
[1736695840989,0.22753722,3294.7,3294.4,3.2078]
[1736695841189,0.44011722,3294.7,3294.5,0.21259]
[1736695841391,0.22753722,3294.7,3294.6,40.8]
[1736695841691,0.44010722,3294.7,3294.6,40.8]
[1736695842081,0.22753722,3294.7,3294.4,5.31891269]
[1736695842283,0.21259,3294.5,3294.4,5.31891269]
[1736695842486,0.21259,3294.5,3294.4,5.53150269]
[1736695842690,0.21259,3294.5,3294.4,46.11891269]
[1736695843090,0.21259,3294.5,3294.4,44.0078]
[1736695843295,0.21259,3294.5,3294.4,3.2078]
[1736695846192,0.21261,3294.2,3294.1,0.4628]
[1736695846387,0.21261,3294.1,3294.0,0.4369]
[1736695847292,0.22753722,3294.7,3294.0,0.4369]
[1736695847497,0.21259,3294.5,3294.3,3.42039]
[1736695847688,0.22753722,3294.7,3294.3,3.2078]
[1736695847889,0.44011722,3294.7,3294.5,0.21258]
[1736695848191,0.22753722,3294.7,3294.3,3.2078]
[1736695848395,0.21259,3294.4,3294.3,3.2078]
[1736695850093,0.21259,3294.4,3294.3,3.4204]
[1736695850398,0.21355549,3294.5,3294.3,3.4204]
[1736695850599,0.21259,3294.4,3294.3,3.2078]
[1736695851001,0.00096549,3294.5,3294.4,0.21259]
[1736695852291,0.21259,3294.4,3294.3,3.2078]
[1736695852798,0.21259,3294.4,3294.3,3.4204]
[1736695853102,0.21259,3294.4,3294.3,3.2078]
[1736695853691,0.00096549,3294.5,3294.1,0.66631]
[1736695853892,0.00096549,3294.5,3294.1,0.4537]
[1736695854096,0.21261,3294.2,3294.1,0.66631]
[1736695854804,0.21261,3294.2,3294.1,0.4537]
[1736695855105,0.21262,3294.0,3293.9,3.2078]
[1736695856103,0.21265,3293.6,3293.5,3.6858]
[1736695856502,4.19257,3293.9,3293.1,3.6774]
[1736695856708,0.21267,3293.2,3293.1,3.89008]
[1736695857008,0.21267,3293.2,3293.1,3.6774]
[1736695857511,0.21267,3293.2,3293.1,3.2078]
[1736695857806,3.2078,3293.5,3292.8,40.8]
[1736695858209,0.21267,3293.3,3293.1,0.21267]
[1736695858403,0.21267,3293.3,3293.2,0.9146]
[1736695859013,1.00509,3293.8,3292.9,0.21269]
[1736695859210,0.21268,3293.0,3292.8,0.64999]
[1736695859405,0.53162,3293.6,3292.8,0.4373]
[1736695859611,0.4735,3293.8,3292.8,0.4373]
[1736695859909,0.53164,3293.5,3292.7,44.0078]
[1736695860107,0.2127,3292.8,3292.7,44.0078]
[1736695860305,0.2127,3292.8,3292.7,3.2078]
[1736695860511,0.21272,3292.4,3292.3,3.6616]
[1736695860805,3.2078,3293.0,3292.3,3.6616]
[1736695860806,3.2078,3293.0,3292.3,3.2078]
[1736695861397,0.21272,3292.5,3292.3,3.2078]
[1736695861612,3.2078,3293.0,3292.3,3.2078]
[1736695861810,0.21272,3292.4,3292.3,3.2078]
[1736695862402,0.21275,3292.0,3291.9,0.4462]
[1736695862704,3.73961,3292.5,3291.7,3.2078]
[1736695862906,0.436,3292.4,3291.7,3.2078]
[1736695863109,0.4336,3292.3,3291.7,3.2078]
[1736695863308,0.21276,3291.9,3291.7,3.2078]
[1736695863503,0.4336,3292.3,3291.7,3.2078]
[1736695863700,0.21276,3291.9,3291.7,3.2078]
[1736695864209,0.4336,3292.3,3291.7,3.2078]
[1736695864401,0.21276,3291.8,3291.7,3.2078]
[1736695864807,0.21279,3291.5,3291.3,3.2078]
[1736695865009,3.2078,3292.1,3291.3,3.2078]
[1736695865202,0.21278,3291.5,3291.3,3.2078]
[1736695865807,0.21279,3291.4,3291.3,3.2078]
[1736695866011,0.21277,3291.7,3291.4,0.21279]
[1736695866206,3.2078,3292.1,3291.3,3.2078]
[1736695866411,0.21278,3291.5,3291.3,3.2078]
[1736695866914,0.22695684,3291.5,3291.4,0.21278]
[1736695868010,0.21279,3291.4,3291.3,3.2078]
[1736695868814,0.22695684,3291.5,3291.3,3.2078]
[1736695869015,0.22695684,3291.5,3291.3,3.42059]
[1736695869313,0.22695684,3291.5,3291.3,3.2078]
[1736695869314,0.43973684,3291.5,3291.3,3.2078]
[1736695870207,0.22695684,3291.5,3291.4,0.21279]
[1736695870601,4.4618,3292.1,3291.4,0.21279]
[1736695870808,0.21278,3291.6,3291.5,40.8]
[1736695871107,0.21279,3291.4,3291.3,3.2078]
[1736695872117,0.21281,3291.0,3290.9,3.2078]
[1736695872313,0.9045,3291.5,3290.9,3.2078]
[1736695872515,0.21281,3291.1,3290.9,3.2078]
[1736695872712,0.9045,3291.5,3290.9,3.2078]
[1736695873009,0.21279,3291.3,3290.9,3.2078]
[1736695873205,0.4694,3291.5,3290.9,3.2078]
[1736695873406,0.21281,3291.0,3290.9,3.2078]
[1736695876011,0.4351,3291.3,3290.9,3.2078]
[1736695876213,0.21281,3291.1,3290.9,3.42062]
[1736695876810,0.4694,3291.5,3290.9,3.2078]
[1736695877014,0.4694,3291.5,3291.0,0.21281]
[1736695877015,0.21281,3291.2,3291.0,0.21281]
[1736695877209,0.21281,3291.2,3290.9,3.42062]
[1736695877610,0.4694,3291.5,3290.9,0.21282]
[1736695877815,0.21281,3291.1,3290.9,0.21282]
[1736695878116,3.2078,3291.4,3290.6,44.0078]
[1736695878311,0.21282,3290.9,3290.7,0.21283]
[1736695878515,0.21283,3290.8,3290.6,3.2078]
[1736695878916,0.21281,3291.1,3290.3,3.42065]
[1736695879105,0.53203,3291.1,3290.3,3.2078]
[1736695879310,0.4436,3291.0,3290.3,3.2078]
[1736695879512,0.21284,3290.6,3290.4,0.21285]
[1736695880315,4.18344,3291.0,3290.3,3.2078]
[1736695880519,0.21285,3290.4,3290.3,3.2078]
[1736695880818,0.21287,3290.1,3289.9,0.21288]
[1736695881120,0.21285,3290.4,3290.2,0.21286]
[1736695881524,3.2078,3290.5,3289.8,0.4703]
[1736695881819,0.21286,3290.3,3290.1,0.21287]
[1736695882323,0.21283,3290.7,3290.5,0.21284]
[1736695882618,3.42061,3291.1,3290.7,0.21283]
[1736695882820,0.21283,3290.8,3290.6,4.35774]
[1736695883018,3.2078,3291.1,3290.6,3.2078]
[1736695883212,0.21285,3290.4,3290.3,0.4596]
[1736695883522,3.2078,3290.7,3289.9,0.9371]
[1736695883714,0.21287,3290.2,3290.0,0.21288]
[1736695883912,3.2078,3290.7,3290.1,0.21287]
[1736695884117,0.21286,3290.4,3290.2,0.21286]
[1736695884318,3.42064,3290.7,3290.5,0.21284]
[1736695884518,0.21284,3290.6,3290.4,0.21285]
[1736695884817,0.21285,3290.5,3290.3,0.21286]
[1736695885024,3.2078,3290.7,3290.1,3.2078]
[1736695885517,3.42064,3290.7,3290.5,0.21284]
[1736695885717,3.42064,3290.7,3290.6,0.9259]
[1736695885911,1.79301,3291.2,3290.7,0.21283]
[1736695885912,0.21282,3290.9,3290.7,0.21283]
[1736695886522,0.21283,3290.7,3290.6,4.5868]
[1736695887318,0.21283,3290.7,3290.6,4.1337]
[1736695887726,0.21283,3290.7,3290.6,0.9259]
[1736695887931,3.2078,3291.1,3290.2,2.10973337]
[1736695888123,0.21286,3290.3,3290.2,3.06113337]
[1736695888324,0.21286,3290.3,3290.2,0.9514]
[1736695888523,0.21286,3290.4,3290.2,1.16427]
[1736695888825,3.2078,3291.1,3290.2,3.06113337]
[1736695889126,3.2078,3291.1,3290.6,3.2078]
[1736695889326,0.21281,3291.0,3290.6,3.2078]
[1736695889530,0.2128,3291.3,3290.8,2.10973337]
[1736695889729,0.2128,3291.2,3291.0,0.21281]
[1736695890026,3.87138,3291.5,3291.2,0.2128]
[1736695890226,0.21279,3291.4,3291.1,5.31753337]
[1736695890423,3.2078,3291.5,3291.2,0.2128]
[1736695890620,3.2078,3291.5,3291.1,5.31753337]
[1736695890822,0.2128,3291.3,3291.1,5.31753337]
[1736695891026,3.2078,3291.5,3291.1,3.2078]
[1736695891436,3.42059,3291.5,3291.2,0.21279]
[1736695891728,3.2078,3291.5,3291.2,0.21279]
[1736695891925,0.21279,3291.4,3291.1,5.53033337]
[1736695892133,0.2128,3291.3,3291.1,5.31753337]
[1736695892332,3.2078,3291.5,3291.1,5.31753337]
[1736695892533,3.2078,3291.5,3291.1,5.53033337]
[1736695892830,0.21279,3291.4,3291.1,5.53034337]
[1736695893134,0.2128,3291.2,3291.1,3.2078]
[1736695893427,3.2078,3291.5,3291.1,3.2078]
[1736695893630,0.2128,3291.2,3291.1,3.2078]
[1736695896125,0.21281,3291.1,3290.9,0.9514]
[1736695896725,0.21281,3291.1,3290.8,0.21282]
[1736695896931,0.4767,3291.3,3290.8,0.21282]
[1736695897329,0.21281,3291.1,3290.9,0.21282]
[1736695897831,0.21281,3291.1,3291.0,0.9069]
[1736695898034,0.4422,3291.4,3290.8,0.21282]
[1736695898235,0.21281,3291.1,3290.8,1.11972]
[1736695899025,0.21282,3290.9,3290.8,0.9069]
[1736695899636,3.2078,3291.1,3290.8,0.9069]
[1736695899836,0.4422,3291.4,3290.8,0.9069]
[1736695900133,0.21279,3291.3,3290.8,0.9069]
[1736695900331,0.21279,3291.3,3290.8,1.11972]
[1736695900940,0.21279,3291.4,3290.9,0.21282]
[1736695901233,0.21279,3291.3,3291.0,0.4347]
[1736695903939,0.2128,3291.2,3291.0,0.4347]
[1736695906047,0.21281,3291.1,3291.0,0.4347]
[1736695909645,0.21281,3291.0,3290.9,4.74377299]
[1736695910743,0.21282,3290.9,3290.8,0.9069]
[1736695915248,0.21285,3290.5,3290.4,0.4362]
[1736695915549,0.21285,3290.5,3290.4,1.3461]
[1736695919053,0.21285,3290.5,3290.4,0.9099]
[1736695920247,0.21285,3290.5,3290.4,0.465]
[1736695920446,0.53211,3290.6,3290.2,4.74377299]
[1736695920640,0.21286,3290.3,3290.2,4.74377299]
[1736695920846,0.4698,3290.4,3290.0,4.74377299]
[1736695920847,0.21287,3290.1,3290.0,4.74377299]
[1736695922257,0.2129,3289.7,3289.6,3.2078]
[1736695924245,0.21293,3289.2,3289.1,7.95157299]
[1736695925650,0.21293,3289.2,3289.1,3.2078]
[1736695927855,0.21297,3288.6,3288.4,7.11565949]
[1736695928048,0.21298,3288.5,3288.4,5.19647299]
[1736695928248,0.21297,3288.6,3288.4,5.19647299]
[1736695928458,3.2078,3288.9,3288.4,5.19647299]
[1736695928654,0.21298,3288.5,3288.4,5.19647299]
[1736695929057,0.21298,3288.5,3288.4,0.4527]
[1736695929365,0.21298,3288.4,3288.3,3.6869]
[1736695929552,3.2078,3288.9,3288.3,3.6869]
[1736695929751,0.21297,3288.7,3288.4,0.21298]
[1736695930252,3.2078,3288.9,3288.5,0.4487]
[1736695930555,0.21297,3288.7,3288.5,0.4487]
[1736695931559,3.2078,3288.9,3288.5,0.4487]
[1736695931759,0.21298,3288.4,3288.3,3.6869]
[1736695932059,0.21298,3288.5,3288.3,3.6869]
[1736695932460,0.22865449,3288.6,3288.3,3.6869]
[1736695932654,0.44162449,3288.6,3288.3,3.89988]
[1736695932961,0.22865449,3288.6,3288.3,3.6869]
[1736695933363,0.44162449,3288.6,3288.3,3.89989]
[1736695933661,0.21298,3288.5,3288.3,3.6869]
[1736695934065,0.22865449,3288.6,3288.3,3.6869]
[1736695934269,0.21298,3288.4,3288.3,3.6869]
[1736695934564,0.21298,3288.5,3288.3,3.89989]
[1736695934759,0.21298,3288.5,3288.3,3.6869]
[1736695934969,0.22865449,3288.6,3288.3,3.6869]
[1736695934970,0.21298,3288.4,3288.3,3.6869]
[1736695936057,0.21298,3288.5,3288.3,3.89989]
[1736695936257,0.22865449,3288.6,3288.3,3.6869]
[1736695936461,0.21298,3288.4,3288.3,3.6869]
[1736695937170,0.21298,3288.4,3288.3,3.2078]
[1736695939365,0.22865449,3288.6,3288.3,5.31961921]
[1736695939659,3.2078,3288.9,3288.3,5.31961921]
[1736695939860,3.2078,3288.9,3288.4,0.67598]
[1736695939861,0.21297,3288.6,3288.4,0.67598]
[1736695940059,0.21297,3288.6,3288.5,0.65358]
[1736695940468,0.21297,3288.6,3288.5,0.4406]
[1736695941061,0.21298,3288.4,3288.3,3.2078]
[1736695943671,3.2078,3288.5,3288.1,0.4487]
[1736695943860,0.21299,3288.2,3288.1,0.4487]
[1736695945060,3.2078,3288.5,3288.4,0.21298]
[1736695945258,3.2078,3289.0,3288.9,0.21295]
[1736695945660,3.2078,3289.0,3288.8,2.11181921]
[1736695945661,0.4772,3289.5,3288.8,2.11181921]
[1736695945969,0.4772,3289.5,3289.2,3.2078]
[1736695946266,0.21292,3289.3,3289.2,3.2078]
[1736695946658,0.4772,3289.5,3289.2,3.2078]
[1736695946864,0.21291,3289.5,3289.2,3.42073]
[1736695947060,0.9333,3289.9,3289.2,3.42073]
[1736695947267,0.9333,3289.9,3289.3,0.21292]
[1736695947456,0.21292,3289.4,3289.2,3.42073]
[1736695947661,0.9333,3289.9,3289.2,3.2078]
[1736695947869,0.229134,3289.6,3289.1,2.11181921]
[1736695948067,0.229134,3289.6,3289.5,3.42071]
[1736695948269,0.21288,3290.1,3289.8,0.21289]
[1736695948468,0.21288,3290.1,3290.0,3.2078]
[1736695951570,0.21291,3289.5,3289.4,3.2078]
[1736695952966,3.2078,3289.6,3288.8,3.2078]
[1736695953167,0.21295,3288.9,3288.8,3.2078]
[1736695953374,2.11181921,3289.1,3288.3,3.678]
[1736695953674,0.21298,3288.4,3288.3,3.2078]
[1736695963480,0.43746621,3288.4,3288.3,3.2078]
[1736695966882,0.21303,3287.6,3287.5,3.2078]
[1736695968371,0.21307,3287.1,3287.0,3.2078]
[1736695968777,0.21307,3287.1,3287.0,7.93291371]
[1736695968977,3.2078,3287.5,3287.0,7.93291371]
[1736695969174,3.42084,3287.5,3287.2,0.21305]
[1736695969383,3.2078,3287.5,3287.1,0.21306]
[1736695969592,0.21305,3287.3,3287.1,0.21306]
[1736695969781,3.2078,3287.5,3287.0,4.1358]
[1736695970087,0.21304,3287.5,3287.3,0.21305]
[1736695970283,0.21305,3287.4,3287.2,0.21306]
[1736695970587,3.2078,3287.7,3287.0,4.1358]
[1736695970782,0.21307,3287.1,3287.0,3.6583]
[1736695970979,0.21306,3287.3,3287.1,0.21306]
[1736695971180,0.21306,3287.3,3287.0,3.6583]
[1736695971486,0.21306,3287.3,3287.0,3.87137]
[1736695971787,0.21306,3287.2,3287.0,3.87137]
[1736695972286,0.21306,3287.3,3287.1,0.21307]
[1736695972781,0.4688,3287.6,3287.0,3.6583]
[1736695972985,0.21306,3287.3,3287.0,3.87137]
[1736695973182,0.21306,3287.2,3287.0,3.87137]
[1736695973986,0.21306,3287.2,3287.0,3.6583]
[1736695974187,0.21306,3287.2,3287.0,3.87137]
[1736695974687,0.21307,3287.1,3287.0,3.6583]
[1736695975282,0.98274,3287.9,3287.3,0.21305]
[1736695975480,0.4502,3287.9,3287.4,0.68415]
[1736695975680,0.4502,3287.9,3287.4,0.4711]
[1736695975886,0.21304,3287.5,3287.4,0.68415]
[1736695976086,0.21304,3287.5,3287.4,0.4711]
[1736695977184,0.21307,3287.1,3287.0,3.2078]
[1736695978580,0.4476,3287.4,3287.0,3.2078]
[1736695978791,0.4476,3287.4,3287.1,0.4608]
[1736695978982,0.21306,3287.2,3287.1,0.9001]
[1736695979497,0.21306,3287.2,3287.1,0.4393]
[1736695979687,0.21307,3287.1,3287.0,3.2078]
[1736695982090,3.2078,3287.2,3286.6,2.11418033]
[1736695982296,0.21308,3287.0,3286.8,0.21308]
[1736695982594,3.2078,3287.2,3286.6,2.11418033]
[1736695982794,3.42086,3287.2,3286.7,0.21309]
[1736695982996,3.42086,3287.2,3286.9,0.21307]